Cogmind - Beta 10.1 @@@ ROGUE MODE // 2020.09.21 @ 18:29:10 Player: zzxc Result: Destroyed by S-43 Plague with Heavy Machine Gun Performance ------------- Evolutions (8) 4000 Regions Visited (15) 3000 Robots Destroyed (0) 0 Value Destroyed (0) 0 Prototype IDs (0) 0 Alien Tech Used (0) 0 Bonus (5811) 5811 TOTAL SCORE: 12811 Bonus ------- Pacifist 5511 Aligned with FarCom 300 Cogmind --------- Core Integrity 0/1450 Matter 255/300 Energy 99/100 System Corruption 5% Temperature Cool (0) Movement Core (50) Location -2/Research Parts ------- > --- POWER (17) ------- (None) > --- PROPULSION (2) --- (None) > --- UTILITY (2) ------ (None) > --- WEAPON (2) ------- (None) > --- INVENTORY (4) ---- (None) Peak State ------------ None Favorites ----------- Power None Propulsion None Utility None Weapon None Build | -11 -10 -10 -10 -9 -8 -7 -7 -7 -6 -6 -6 -5 -4 -3 -2 ------- Run | Scr Mat Min Exi Min Mat Fac Low Low Fac Was Fac Fac Fac Res Res Slots Evolved 16 | . . . . . 4 2 . . 2 . . 2 2 2 2 Power 16 | . . . . . 4 2 . . 2 . . 2 2 2 2 Propulsion . | . . . . . . . . . . . . . . . . Utility . | . . . . . . . . . . . . . . . . Weapon . | . . . . . . . . . . . . . . . . Parts Attached . | . . . . . . . . . . . . . . . . Power . | . . . . . . . . . . . . . . . . Engine . | . . . . . . . . . . . . . . . . Core . | . . . . . . . . . . . . . . . . Reactor . | . . . . . . . . . . . . . . . . Propulsion . | . . . . . . . . . . . . . . . . Treads . | . . . . . . . . . . . . . . . . Leg . | . . . . . . . . . . . . . . . . Wheel . | . . . . . . . . . . . . . . . . Hover . | . . . . . . . . . . . . . . . . Flight . | . . . . . . . . . . . . . . . . Utility . | . . . . . . . . . . . . . . . . Device . | . . . . . . . . . . . . . . . . Storage . | . . . . . . . . . . . . . . . . Processor . | . . . . . . . . . . . . . . . . Hackware . | . . . . . . . . . . . . . . . . Protection . | . . . . . . . . . . . . . . . . Artifact . | . . . . . . . . . . . . . . . . Weapon . | . . . . . . . . . . . . . . . . Energy Gun . | . . . . . . . . . . . . . . . . Energy Cannon . | . . . . . . . . . . . . . . . . Ballistic Gun . | . . . . . . . . . . . . . . . . Ballistic Cannon . | . . . . . . . . . . . . . . . . Launcher . | . . . . . . . . . . . . . . . . Special Weapon . | . . . . . . . . . . . . . . . . Impact Weapon . | . . . . . . . . . . . . . . . . Slashing Weapon . | . . . . . . . . . . . . . . . . Piercing Weapon . | . . . . . . . . . . . . . . . . Special Melee Weapon . | . . . . . . . . . . . . . . . . Unidentified Prototypes . | . . . . . . . . . . . . . . . . Parts Lost . | . . . . . . . . . . . . . . . . Power . | . . . . . . . . . . . . . . . . Propulsion . | . . . . . . . . . . . . . . . . Utility . | . . . . . . . . . . . . . . . . Weapon . | . . . . . . . . . . . . . . . . Highest Loss Streak . | . . . . . . . . . . . . . . . . Average Slot Usage (%) . | . . . . . . . . . . . . . . . . Naked Turns 2544 | . 51 200 151 160 60 37 70 42 504 70 183 213 84 181 538 Heaviest Build . | . . . . . . . . . . . . . . . . Greatest Support 3 | 3 3 3 3 3 3 3 3 3 3 3 3 3 3 3 3 Greatest Overweight (x) . | . . . . . . . . . . . . . . . . Average Overweight (x) . | . . . . . . . . . . . . . . . . Largest Inventory Capacity 4 | 4 4 4 4 4 4 4 4 4 4 4 4 4 4 4 4 Average Capacity 4 | 4 4 4 4 4 4 4 4 4 4 4 4 4 4 4 4 Most Carried . | . . . . . . . . . . . . . . . . Average Carried . | . . . . . . . . . . . . . . . . Final Capacity 4 | 4 4 4 4 4 4 4 4 4 4 4 4 4 4 4 4 Final Carried . | . . . . . . . . . . . . . . . . Class Distribution -------------------- 100% | Mutant Dominant Class ---------------- Mutant | -10/Materials Mutant | -10/Mines Mutant | -10/Exiles Mutant | -9/Mines Mutant | -8/Materials Mutant | -7/Factory Mutant | -7/Lower Caves Mutant | -7/Lower Caves Mutant | -6/Factory Mutant | -6/Waste Mutant | -6/Factory Mutant | -5/Factory Mutant | -4/Factory Mutant | -3/Research Mutant | -2/Research Resources | -11 -10 -10 -10 -9 -8 -7 -7 -7 -6 -6 -6 -5 -4 -3 -2 ----------- Run | Scr Mat Min Exi Min Mat Fac Low Low Fac Was Fac Fac Fac Res Res Matter Collected 132 | . . 15 . . . . . . 70 . . . . . 47 Remotely . | . . . . . . . . . . . . . . . . Salvage Created . | . . . . . . . . . . . . . . . . Parts . | . . . . . . . . . . . . . . . . Haulers Intercepted . | . . . . . . . . . . . . . . . . Recyclers Shooed . | . . . . . . . . . . . . . . . . Parts Field Recycled . | . . . . . . . . . . . . . . . . Retrieved Matter . | . . . . . . . . . . . . . . . . Parts Self-Destructed . | . . . . . . . . . . . . . . . . Prevented . | . . . . . . . . . . . . . . . . Kills | -11 -10 -10 -10 -9 -8 -7 -7 -7 -6 -6 -6 -5 -4 -3 -2 ------- Run | Scr Mat Min Exi Min Mat Fac Low Low Fac Was Fac Fac Fac Res Res Combat Hostiles Destroyed . | . . . . . . . . . . . . . . . . Classes Destroyed . | . . . . . . . . . . . . . . . . Best Kill Streak . | . . . . . . . . . . . . . . . . Combat Bots Only . | . . . . . . . . . . . . . . . . Max Kills in Single Turn . | . . . . . . . . . . . . . . . . Gunslinging . | . . . . . . . . . . . . . . . . Exploded . | . . . . . . . . . . . . . . . . Melee . | . . . . . . . . . . . . . . . . Uniques/NPCs Destroyed . | . . . . . . . . . . . . . . . . Combat | -11 -10 -10 -10 -9 -8 -7 -7 -7 -6 -6 -6 -5 -4 -3 -2 -------- Run | Scr Mat Min Exi Min Mat Fac Low Low Fac Was Fac Fac Fac Res Res Damage Taken 2846 | . 119 . . . 230 . 177 47 389 . 305 47 . 73 1459 Core 2846 | . 119 . . . 230 . 177 47 389 . 305 47 . 73 1459 Absorbed by Shields . | . . . . . . . . . . . . . . . . Core Remaining (%) 73 | 100 . . . 52 58 . . 68 . . 18 95 100 94 . Volleys Fired . | . . . . . . . . . . . . . . . . Largest . | . . . . . . . . . . . . . . . . Hottest . | . . . . . . . . . . . . . . . . Shots Fired . | . . . . . . . . . . . . . . . . Gun . | . . . . . . . . . . . . . . . . Cannon . | . . . . . . . . . . . . . . . . Launcher . | . . . . . . . . . . . . . . . . Special . | . . . . . . . . . . . . . . . . Kinetic . | . . . . . . . . . . . . . . . . Thermal . | . . . . . . . . . . . . . . . . Explosive . | . . . . . . . . . . . . . . . . Electromagnetic . | . . . . . . . . . . . . . . . . Robot Hit Streak . | . . . . . . . . . . . . . . . . Robot Miss Streak . | . . . . . . . . . . . . . . . . Penetration Max . | . . . . . . . . . . . . . . . . Secondary Targets . | . . . . . . . . . . . . . . . . Shots Hit Robots . | . . . . . . . . . . . . . . . . Core Hits 6 | . 2 . . . . . . . . . 1 . . 1 2 Critical Hits . | . . . . . . . . . . . . . . . . Critical Kills . | . . . . . . . . . . . . . . . . Critical Parts Destroyed . | . . . . . . . . . . . . . . . . Melee Attacks . | . . . . . . . . . . . . . . . . Impact . | . . . . . . . . . . . . . . . . Slashing . | . . . . . . . . . . . . . . . . Piercing . | . . . . . . . . . . . . . . . . Sneak Attacks . | . . . . . . . . . . . . . . . . Combat Hostiles . | . . . . . . . . . . . . . . . . Follow-up Attacks . | . . . . . . . . . . . . . . . . Damage Inflicted 61 | . 8 . . . . . . . 6 . 3 3 . 9 32 Guns . | . . . . . . . . . . . . . . . . Cannons . | . . . . . . . . . . . . . . . . Explosions . | . . . . . . . . . . . . . . . . Melee . | . . . . . . . . . . . . . . . . Ramming 61 | . 8 . . . . . . . 6 . 3 3 . 9 32 Kinetic . | . . . . . . . . . . . . . . . . Thermal . | . . . . . . . . . . . . . . . . Explosive . | . . . . . . . . . . . . . . . . Electromagnetic . | . . . . . . . . . . . . . . . . Impact . | . . . . . . . . . . . . . . . . Slashing . | . . . . . . . . . . . . . . . . Piercing . | . . . . . . . . . . . . . . . . Highest Corruption 10 | . . . . . . 1 1 1 . 8 10 . . . 5 Average Corruption 5 | . . . . . . 1 1 1 . 8 8 . . . 3 Corruption Purged . | . . . . . . . . . . . . . . . . Effects 8 | . . . . . . . . . . 2 5 . . . 1 Message Errors 1 | . . . . . . . . . . . 1 . . . . Matter Fused 1 | . . . . . . . . . . . 1 . . . . Heat Flow Errors 1 | . . . . . . . . . . . 1 . . . . Energy Discharges 1 | . . . . . . . . . . . 1 . . . . Data Loss (minor) 4 | . . . . . . . . . . 2 1 . . . 1 Overload Shots . | . . . . . . . . . . . . . . . . Overflow Damage . | . . . . . . . . . . . . . . . . Projectiles . | . . . . . . . . . . . . . . . . Explosions . | . . . . . . . . . . . . . . . . Melee . | . . . . . . . . . . . . . . . . Knockbacks . | . . . . . . . . . . . . . . . . Impact . | . . . . . . . . . . . . . . . . Kinetic . | . . . . . . . . . . . . . . . . Secondary . | . . . . . . . . . . . . . . . . Self-Inflicted Damage 36 | . 3 . . . . . . . 3 . 1 1 . 4 24 Shots . | . . . . . . . . . . . . . . . . Rammed 9 | . 2 . . . . . . . 1 . 1 1 . 1 3 Targets Rammed 9 | . 2 . . . . . . . 1 . 1 1 . 1 3 Kicked . | . . . . . . . . . . . . . . . . Crushed . | . . . . . . . . . . . . . . . . Highest Temperature 184 | . . . . . . . . . . . 184 . . . . Average Temperature 110 | . . . . . . . . . . . 110 . . . . Received Heat Transfer 411 | . 36 . . . 135 . 45 . 54 . 51 9 . . 81 Siege Activations . | . . . . . . . . . . . . . . . . Robots Corrupted . | . . . . . . . . . . . . . . . . Combat Hostiles . | . . . . . . . . . . . . . . . . Parts Fried . | . . . . . . . . . . . . . . . . Impact Corruptions . | . . . . . . . . . . . . . . . . Robots Melted . | . . . . . . . . . . . . . . . . Combat Hostiles . | . . . . . . . . . . . . . . . . Parts Melted . | . . . . . . . . . . . . . . . . Heat Transferred . | . . . . . . . . . . . . . . . . Parts Sabotaged . | . . . . . . . . . . . . . . . . Parts Stolen . | . . . . . . . . . . . . . . . . Parts Stripped . | . . . . . . . . . . . . . . . . Power Chain Reactions . | . . . . . . . . . . . . . . . . Missiles Intercepted . | . . . . . . . . . . . . . . . . Alert | -11 -10 -10 -10 -9 -8 -7 -7 -7 -6 -6 -6 -5 -4 -3 -2 ------- Run | Scr Mat Min Exi Min Mat Fac Low Low Fac Was Fac Fac Fac Res Res Peak Influence 221 | . 29 10 . . 45 . . . 22 5 98 76 37 81 221 Initial 47 | . . 10 . . . . . . . 5 3 47 37 18 45 Average 49 | . 19 10 . . 11 . . . 12 5 23 52 37 61 137 Maximum Alert Level 1 | . . . . . . . . . . . . . . . 1 Low Security (%) 93 | 100 100 100 . 100 100 100 . . 100 100 100 100 100 100 72 Level 1 6 | . . . . . . . . . . . . . . . 27 Level 2 . | . . . . . . . . . . . . . . . . Level 3 . | . . . . . . . . . . . . . . . . Level 4 . | . . . . . . . . . . . . . . . . Level 5 . | . . . . . . . . . . . . . . . . High Security . | . . . . . . . . . . . . . . . . Max Security . | . . . . . . . . . . . . . . . . Squads Dispatched 9 | . 3 . . . 2 . . . 1 . . . 1 . 2 Investigation 2 | . 1 . . . . . . . . . . . 1 . . Extermination 1 | . . . . . . . . . . . . . . . 1 Reinforcement 6 | . 2 . . . 2 . . . 1 . . . . . 1 Assault . | . . . . . . . . . . . . . . . . Garrison . | . . . . . . . . . . . . . . . . Intercept . | . . . . . . . . . . . . . . . . Construction Impeded . | . . . . . . . . . . . . . . . . Haulers Reinforced . | . . . . . . . . . . . . . . . . Stealth | -11 -10 -10 -10 -9 -8 -7 -7 -7 -6 -6 -6 -5 -4 -3 -2 --------- Run | Scr Mat Min Exi Min Mat Fac Low Low Fac Was Fac Fac Fac Res Res Distress Signals 5 | . 1 . . . 2 . . . . . 1 . . . 1 Communications Jammed . | . . . . . . . . . . . . . . . . Distress Signals . | . . . . . . . . . . . . . . . . Times Spotted 89 | . 9 . . . 7 . 9 1 7 6 9 1 . 5 35 Peak Tracking Total 24 | . 9 . . . 7 . 7 1 5 6 7 1 . 5 24 Tactical Retreats 10 | . . . . . . . 1 . . . 3 . . . 6 Traps | -11 -10 -10 -10 -9 -8 -7 -7 -7 -6 -6 -6 -5 -4 -3 -2 ------- Run | Scr Mat Min Exi Min Mat Fac Low Low Fac Was Fac Fac Fac Res Res Traps Triggered 4 | . 1 . . . . 1 . . 2 . . . . . . Indirectly . | . . . . . . . . . . . . . . . . Trap Hack Attempts . | . . . . . . . . . . . . . . . . Triggered . | . . . . . . . . . . . . . . . . Disarmed . | . . . . . . . . . . . . . . . . Reprogrammed . | . . . . . . . . . . . . . . . . Reused . | . . . . . . . . . . . . . . . . Traps Extracted . | . . . . . . . . . . . . . . . . Installed . | . . . . . . . . . . . . . . . . Triggered . | . . . . . . . . . . . . . . . . Machines | -11 -10 -10 -10 -9 -8 -7 -7 -7 -6 -6 -6 -5 -4 -3 -2 ---------- Run | Scr Mat Min Exi Min Mat Fac Low Low Fac Was Fac Fac Fac Res Res Machines Disabled . | . . . . . . . . . . . . . . . . Max in Single Turn . | . . . . . . . . . . . . . . . . Machines Sabotaged . | . . . . . . . . . . . . . . . . Garrisons Compromised . | . . . . . . . . . . . . . . . . Overloaded Fab Kills . | . . . . . . . . . . . . . . . . Fab Network Shutdowns . | . . . . . . . . . . . . . . . . Hacking | -11 -10 -10 -10 -9 -8 -7 -7 -7 -6 -6 -6 -5 -4 -3 -2 --------- Run | Scr Mat Min Exi Min Mat Fac Low Low Fac Was Fac Fac Fac Res Res Machines Accessed 20 | . 1 . . . 1 . . . 2 . 3 3 1 2 7 Terminals 18 | . 1 . . . 1 . . . 2 . 3 2 1 2 6 Fabricators . | . . . . . . . . . . . . . . . . Repair Stations . | . . . . . . . . . . . . . . . . Recycling Units . | . . . . . . . . . . . . . . . . Scanalyzers . | . . . . . . . . . . . . . . . . Garrison Access 2 | . . . . . . . . . . . . 1 . . 1 Total Hacks 51 | . 2 . . . 1 . . . 8 . 12 4 2 4 18 Successful 22 | . 2 . . . . . . . 2 . 4 2 . 2 10 Failed 29 | . . . . . 1 . . . 6 . 8 2 2 2 8 Catastrophic 8 | . . . . . 1 . . . 1 . . 2 1 1 2 Database Lockouts . | . . . . . . . . . . . . . . . . Manual 26 | . 2 . . . 1 . . . 3 . 5 3 . 1 11 Terminals 47 | . 2 . . . 1 . . . 8 . 12 2 2 4 16 Fabricators . | . . . . . . . . . . . . . . . . Repair Stations . | . . . . . . . . . . . . . . . . Recycling Units . | . . . . . . . . . . . . . . . . Scanalyzers . | . . . . . . . . . . . . . . . . Garrison Access 4 | . . . . . . . . . . . . 2 . . 2 Terminal Hacks 13 | . 2 . . . . . . . 1 . 3 1 . 1 5 Level Access Points 5 | . . . . . . . . . 1 . 1 1 . 1 1 Branch Access Points 1 | . 1 . . . . . . . . . . . . . . Maintenance Status 1 | . . . . . . . . . . . . . . . 1 Surveillance Status 1 | . . . . . . . . . . . 1 . . . . Patrol Status 2 | . . . . . . . . . . . 1 . . . 1 Zone Layout 3 | . 1 . . . . . . . . . . . . . 2 Fabricator Hacks . | . . . . . . . . . . . . . . . . Repair Station Hacks . | . . . . . . . . . . . . . . . . Recycling Unit Hacks . | . . . . . . . . . . . . . . . . Scanalyzer . | . . . . . . . . . . . . . . . . Garrison Access Hacks . | . . . . . . . . . . . . . . . . Unauthorized Hacks 9 | . . . . . . . . . 1 . 1 1 . 1 5 Terminals 7 | . . . . . . . . . 1 . 1 . . 1 4 Botnet 5 | . . . . . . . . . 1 . . . . 1 3 Disrupt 2 | . . . . . . . . . . . 1 . . . 1 Fabricators . | . . . . . . . . . . . . . . . . Repair Stations . | . . . . . . . . . . . . . . . . Recycling Units . | . . . . . . . . . . . . . . . . Scanalyzers . | . . . . . . . . . . . . . . . . Garrison Access 2 | . . . . . . . . . . . . 1 . . 1 Watchers 2 | . . . . . . . . . . . . 1 . . 1 Data Cores Recovered . | . . . . . . . . . . . . . . . . Used . | . . . . . . . . . . . . . . . . Hacking Detections 18 | . . . . . 1 . . . 2 . 3 3 1 2 6 Full Trace Events 1 | . . . . . . . . . . . . . 1 . . Feedback Events . | . . . . . . . . . . . . . . . . Feedback Blocked . | . . . . . . . . . . . . . . . . Robot Schematics Acquired . | . . . . . . . . . . . . . . . . Robots Built . | . . . . . . . . . . . . . . . . Matter . | . . . . . . . . . . . . . . . . Time . | . . . . . . . . . . . . . . . . Total Robot Build Rating . | . . . . . . . . . . . . . . . . Part Schematics Acquired . | . . . . . . . . . . . . . . . . Parts Built . | . . . . . . . . . . . . . . . . Matter . | . . . . . . . . . . . . . . . . Time . | . . . . . . . . . . . . . . . . Total Part Build Rating . | . . . . . . . . . . . . . . . . Parts Repaired . | . . . . . . . . . . . . . . . . Time . | . . . . . . . . . . . . . . . . Parts Recycled . | . . . . . . . . . . . . . . . . Recycled Matter . | . . . . . . . . . . . . . . . . Retrieved Matter . | . . . . . . . . . . . . . . . . Retrieved Components . | . . . . . . . . . . . . . . . . Parts Scanalyzed . | . . . . . . . . . . . . . . . . Part Schematics Acquired . | . . . . . . . . . . . . . . . . Parts Damaged . | . . . . . . . . . . . . . . . . Bothacking | -11 -10 -10 -10 -9 -8 -7 -7 -7 -6 -6 -6 -5 -4 -3 -2 ------------ Run | Scr Mat Min Exi Min Mat Fac Low Low Fac Was Fac Fac Fac Res Res Used RIF Installer . | . . . . . . . . . . . . . . . . Robots Hacked . | . . . . . . . . . . . . . . . . Non-combat . | . . . . . . . . . . . . . . . . Combat . | . . . . . . . . . . . . . . . . Robot Hacks Applied . | . . . . . . . . . . . . . . . . Relay Couplers Released . | . . . . . . . . . . . . . . . . Robots Rewired . | . . . . . . . . . . . . . . . . Allies Hacked . | . . . . . . . . . . . . . . . . Hacks Repelled . | . . . . . . . . . . . . . . . . Allies | -11 -10 -10 -10 -9 -8 -7 -7 -7 -6 -6 -6 -5 -4 -3 -2 -------- Run | Scr Mat Min Exi Min Mat Fac Low Low Fac Was Fac Fac Fac Res Res Total Allies 3 | . . 3 . . . . . . . . . . . . . Largest Group 3 | . . 3 3 3 3 . . . . . . . . . . Highest-Rated Group 40 | . . 40 40 40 40 . . . . . . . . . . Highest-Rated Ally 16 | . . 16 16 16 16 . . . . . . . . . . Total Orders . | . . . . . . . . . . . . . . . . Ally Attacks 7 | . . . . . 7 . . . . . . . . . . Total Damage 72 | . . . . . 72 . . . . . . . . . . Kills . | . . . . . . . . . . . . . . . . Allies Corrupted . | . . . . . . . . . . . . . . . . Allies Melted . | . . . . . . . . . . . . . . . . Intel | -11 -10 -10 -10 -9 -8 -7 -7 -7 -6 -6 -6 -5 -4 -3 -2 ------- Run | Scr Mat Min Exi Min Mat Fac Low Low Fac Was Fac Fac Fac Res Res Robot Analysis Total . | . . . . . . . . . . . . . . . . Derelict Logs Recovered 2 | . . 1 . 1 . . . . . . . . . . . Drone Launches . | . . . . . . . . . . . . . . . . Drone Recoveries . | . . . . . . . . . . . . . . . . Exploration | -11 -10 -10 -10 -9 -8 -7 -7 -7 -6 -6 -6 -5 -4 -3 -2 ------------- Run | Scr Mat Min Exi Min Mat Fac Low Low Fac Was Fac Fac Fac Res Res Turns Passed 2553 | 9 51 200 151 160 60 37 70 42 504 70 183 213 84 181 538 Spaces Moved 3495 | 18 98 286 153 228 117 74 139 83 380 129 333 344 150 228 735 Core 3495 | 18 98 286 153 228 117 74 139 83 380 129 333 344 150 228 735 Treads . | . . . . . . . . . . . . . . . . Legs . | . . . . . . . . . . . . . . . . Wheels . | . . . . . . . . . . . . . . . . Hover . | . . . . . . . . . . . . . . . . Flight . | . . . . . . . . . . . . . . . . Fastest Speed 50 | 50 50 50 50 50 50 50 50 50 50 50 50 50 50 50 50 Average Speed 50 | 50 50 50 50 50 50 50 50 50 50 50 50 50 50 50 50 Slowest Speed 50 | 50 50 50 50 50 50 50 50 50 50 50 50 50 50 50 50 Overloaded Moves . | . . . . . . . . . . . . . . . . Propulsion Burnouts . | . . . . . . . . . . . . . . . . Robots Hopped . | . . . . . . . . . . . . . . . . Cave-ins Triggered . | . . . . . . . . . . . . . . . . Exploration Rate (%) 28 | 3 30 78 55 62 16 4 29 17 12 83 17 11 4 8 26 Regions Visited 15 Branch Regions 5 Pre-discovered Areas 1 | . . . . 1 . . . . . . . . . . . Known Exits Taken 4 | . 1 . . . . . . . . . 1 1 . 1 . Unknown Exits Taken 9 | 1 . 1 1 1 1 1 1 1 . . . . 1 . . Scrap Searched 2 | . . 1 . . . . 1 . . . . . . . . Spaces Dug . | . . . . . . . . . . . . . . . . Terrain Destroyed . | . . . . . . . . . . . . . . . . Melee . | . . . . . . . . . . . . . . . . Projectile . | . . . . . . . . . . . . . . . . AOE . | . . . . . . . . . . . . . . . . Terrain Rammed 1 | . . . . . . . . . . . . . . . 1 Walls Destroyed . | . . . . . . . . . . . . . . . . Machines Disabled . | . . . . . . . . . . . . . . . . Actions | -11 -10 -10 -10 -9 -8 -7 -7 -7 -6 -6 -6 -5 -4 -3 -2 --------- Run | Scr Mat Min Exi Min Mat Fac Low Low Fac Was Fac Fac Fac Res Res Total 4284 | 17 99 342 226 273 117 73 138 82 694 133 349 384 158 294 905 Wait 778 | . . 57 74 46 1 . . . 298 5 16 40 9 66 166 Move 3484 | 17 97 285 152 227 116 73 138 82 380 128 333 344 149 228 735 Hop . | . . . . . . . . . . . . . . . . Pick Up . | . . . . . . . . . . . . . . . . Fast Attach . | . . . . . . . . . . . . . . . . Attach . | . . . . . . . . . . . . . . . . Detach . | . . . . . . . . . . . . . . . . Swap . | . . . . . . . . . . . . . . . . Drop . | . . . . . . . . . . . . . . . . Fire . | . . . . . . . . . . . . . . . . Melee . | . . . . . . . . . . . . . . . . Ram 7 | . 2 . . . . . . . 1 . . . . . 4 Kick . | . . . . . . . . . . . . . . . . Crush . | . . . . . . . . . . . . . . . . Escape Stasis 15 | . . . . . . . . . 15 . . . . . . Rewire . | . . . . . . . . . . . . . . . . Trap . | . . . . . . . . . . . . . . . . Miscellaneous . | . . . . . . . . . . . . . . . . Route ------- -11/Scrapyard -10/Materials (discovered 2 exits: [*Mat] / *Min) -10/Mines (discovered 3 exits: [*Mat x2] / [*Exi]) -10/Exiles -9/Mines -8/Materials (discovered 3 exits: [*Fac] / *Sto x2) -7/Factory -7/Lower Caves -7/Lower Caves -6/Factory (discovered 4 exits: Fac x4) -6/Waste -6/Factory (discovered 4 exits: *Fac x4) -5/Factory (discovered 4 exits: *Fac x4) -4/Factory -3/Research (discovered 3 exits: *Res x3) -2/Research (discovered 3 exits: *Acc x3) History --------- Turn | Location | Event 5 | -11/Scrapyard | Discovered new exit (range 12) 10 | -11/Scrapyard | Entered Materials 21 | -10/Materials | Identified exit to Mines 48 | -10/Materials | Discovered new exit (range 10) 61 | -10/Materials | Entered Mines 62 | -10/Mines | Assisted by bots powering up and referring to "LRC-V3" 166 | -10/Mines | Discovered new exit (range 9) 209 | -10/Mines | Discovered new exit (range 8) 243 | -10/Mines | Deemed a non-threat by the Exiles lab entrance 243 | -10/Mines | Discovered new exit (range 5) 261 | -10/Mines | Entered Exiles 261 | -10/Exiles | Accompanied by 3 allies 274 | -10/Exiles | Met 8R-AWN 283 | -10/Exiles | Met EX-HEX 296 | -10/Exiles | Met EX-BIN 302 | -10/Exiles | Aligned with FarCom system 302 | -10/Exiles | Given EX-Vault access code 305 | -10/Exiles | Build established: Mutant 316 | -10/Exiles | Met EX-DEC 334 | -10/Exiles | Discovered new exit (range 10) 412 | -10/Exiles | Entered Mines 412 | -9/Mines | Accompanied by 3 allies 434 | -9/Mines | Learned Materials stockpile data 458 | -9/Mines | Met a Derelict bent on vengeance 536 | -9/Mines | Discovered new exit (range 5) 537 | -9/Mines | Learned location of Storage (-8) 572 | -9/Mines | Entered Materials 572 | -8/Materials | Accompanied by 3 allies 572 | -8/Materials | Evolved 4 slots: Power x4 573 | -8/Materials | Identified exit to Storage 607 | -8/Materials | Discovered exit to Storage (range 11) 624 | -8/Materials | Discovered new exit (range 16) 632 | -8/Materials | Entered Factory 632 | -7/Factory | Evolved 2 slots: Power x2 667 | -7/Factory | Discovered new exit (range 5) 669 | -7/Factory | Entered Lower Caves 721 | -7/Lower Caves | Attracted the attention of an 0b10 outpost 736 | -7/Lower Caves | Discovered new exit (range 7) 739 | -7/Lower Caves | Entered another Lower Caves area 774 | -7/Lower Caves | Discovered new exit (range 14) 781 | -7/Lower Caves | Entered Factory 781 | -6/Factory | Evolved 2 slots: Power x2 893 | -6/Factory | Identified exit to Factory 1268 | -6/Factory | Spotted B-75 Beast 1285 | -6/Factory | Sucked down chute 1285 | -6/Factory | Entered Waste 1298 | -6/Waste | Spotted C-40 Crusher 1299 | -6/Waste | Spotted C-40 Crusher 1299 | -6/Waste | Spotted C-40 Crusher 1299 | -6/Waste | Spotted C-40 Crusher 1300 | -6/Waste | EMP discharged 1311 | -6/Waste | Spotted C-40 Crusher 1321 | -6/Waste | Spotted C-40 Crusher 1350 | -6/Waste | Discovered new exit (range 10) 1355 | -6/Waste | Entered Factory 1398 | -6/Factory | Core integrity fell below 50% 1511 | -6/Factory | System corruption reached 10% 1536 | -6/Factory | Core integrity fell below 20% 1538 | -6/Factory | Entered another Factory area 1538 | -5/Factory | Evolved 2 slots: Power x2 1728 | -5/Factory | Identified exit to Factory 1751 | -5/Factory | Entered another Factory area 1751 | -4/Factory | Evolved 2 slots: Power x2 1831 | -4/Factory | Discovered new exit (range 8) 1835 | -4/Factory | Entered Research 1835 | -3/Research | Evolved 2 slots: Power x2 1856 | -3/Research | Identified exit to Research 2016 | -3/Research | Entered another Research area 2016 | -2/Research | Evolved 2 slots: Power x2 2236 | -2/Research | Spotted B-90 Cyclops 2458 | -2/Research | Identified exit to Access 2529 | -2/Research | Core integrity fell below 50% 2551 | -2/Research | Core integrity fell below 20% 2554 | -2/Research | Destroyed by S-43 Plague with Heavy Machine Gun Last Messages --------------- 02531_ P-80 Master resets H-88 Terminator, system corruption cleaned. 02531_ Slug penetrates U-05 Engineer. 02531_ U-05 Engineer destroyed. 02531_ Penetrated by Slug. 02531_ U-05 Engineer suffers critical hit. 02532_ Slug penetrates Wall. 02545_ K-01 Serf destroyed. 02545_ K-01 Serf suffers critical hit. 02545_ R-10 Processor collects Wheel. 02546_ Acquired 10 matter. 02546_ S-43 Plague suffers critical hit. 02546_ S-43 Plague destroyed. 02547_ System corrupted: Component data lost. 02547_ Acquired 37 matter. 02548_ R-10 Processor collects Xenon Bombardment Thruster. 02550_ Penetrated by Slug. 02550_ S-43 Plague destroyed. 02553_ R-10 Processor collects Lgt. Antimatter Reactor. 02553_ Penetrated by Slug. 02553_ Slug penetrates Wall. Map ----- +----------------------------------------------------+ | ?????????????????????????????????????????????????? | | ????????????????????????w????????????????????????? | | ?????????????????????????????????????????????????? | | ?????????????????????????????????????????????????? | | ?????????????????????????????????????????????????? | | ?????????????????????????????????????????????????? | | ?????????????????????????????????????????????????? | | ?????????????????????????????????????????????????? | | ?????????????????????????????????????????????????? | | ?????????????????????????????????????????????????? | | ???????????????????o?????????????????????????????? | | ?????????????????????????????????????????????????? | | ?????????????????????????????????????????????????? | | ?????????????????????????????????????????????????? | | ?????????????????????????????????????????????????? | | ????????????????????????##+###???????????????????? | | ???????????????????????? ###?????????????????? | | ???????????????????????? ??????????????????? | | ??????????????Y????????? < ???????????????????? | | ???????????????????????? Y ???????????????????? | | ???????????????????????? ????????????????????? | | ??????????????????#####?# #????????????????????? | | ??????????????????? # #????????????????????? | | ????????????????????? #t #????????????????????? | | ??????????????????????? + +????????????????????? | | ????????????????????????#@ #????????????????????? | | ????????????????????????# #????????????????????? | | ????????????????????????# #????????????????????? | | ???????????############?# #????????????????????? | | ???????????+ # #????????????????????? | | ???????????# ! *! # #????????????????????? | | ???????????# != [ R #????????????????????? | | ???????????# ! # #????????????????????? | | ???????????# # #????????????????????? | | ???????????############?# s #????????????????????? | | ???????????????#????????# #????????????????????? | | ????????????? ???### =s #????????????????????? | | ????????????g ?# s ##???????????????????? | | ??????????? l ## Rsu##??####?????????????? | | ?????????# g BB #?? ?????????????? | | ?????????# BBk s#?? ??????????????? | | ?????????# s #? """"??#####???????? | | ?????????# """ ss#? """"??# #???????? | | ?????????# """ p # """" ?# #???????? | | ?????????# """ h# """" # #???????? | | ?????????# """ + " # #???????? | | ########## """ # !# #???????? | | # # !=! """ # # #???????? | | # # == """ ########## ########? | | # ""# =! ##########+### [ #? | +----------------------------------------------------+ Best States ------------- Heat Dissipation 49 Energy Generation 5 Energy Capacity 100 Matter Stores 255 Matter Capacity 300 Sight Range 16 Terrain Scan Density 10 Evasion (%) 50 Item Schematics ----------------- None Robot Schematics ------------------ None Fabricated ------------ Nothing Alien Tech Used ----------------- None Achievements -------------- Desperate Times Challenges ------------ None Game ------ Seed ThermalPhasingProjector Manual? 0 Play Time 00:40:23 Cumulative 332.3 hours Start 2020.09.21 @ 17:50:44 End 2020.09.21 @ 18:29:10 Sessions 1 Manual Loads 0 Difficulty Rogue Special Mode None Game No. 583 Rogue 583 Adventurer 0 Explorer 0 Win Type - Total 50 Types 37/4/3/2/1/1/2/0/0 Lore% 91 Gallery% 89 Achievement% 73 Wizard Run 0 Options --------- ASCII 1 Keyboard 1 Movement Numpad Keybinds 0 Fullscreen 2 Font 24/Terminus Map View 76x50 Tactical HUD 1 Map Filters NONE Filters NONE Steam 1 RUN: 3571f2e9-c3b9-4e07-b64a-e1ae39fea200